bitfinex/quotes_BTCUSD_20251116
["timestamp","ask_amount","ask_price","bid_price","bid_amount"]
[1763272817284,0.55896807,96041.0,96040.0,0.00044504]
[1763272818023,0.53081189,96041.0,96040.0,0.00044504]
[1763272819899,0.54715215,96041.0,96040.0,0.00044504]
[1763272820108,0.42274015,96041.0,96040.0,0.00044504]
[1763272820456,0.54416715,96041.0,96040.0,0.00044504]
[1763272822810,0.42274015,96041.0,96040.0,0.00044504]
[1763272824318,0.54851515,96041.0,96040.0,0.00044504]
[1763272825959,0.58385458,96041.0,96040.0,0.00044504]
[1763272826107,0.66723774,96041.0,96040.0,0.00044504]
[1763272826509,0.58802891,96041.0,96040.0,0.00044504]
[1763272827091,0.59775078,96041.0,96040.0,0.00044504]
[1763272827953,0.59875078,96041.0,96040.0,0.00044504]
[1763272828158,0.59975078,96041.0,96040.0,0.00044504]
[1763272828305,0.59975078,96041.0,96020.0,0.0004]
[1763272828306,0.04341874,96030.0,96020.0,0.0004]
[1763272828506,0.04341874,96030.0,96020.0,0.00085085]
[1763272828507,2.17717974,96021.0,96020.0,0.00085085]
[1763272828746,2.23200347,96021.0,96020.0,0.00085085]
[1763272829302,1.79449217,96021.0,96020.0,0.00085085]
[1763272829879,1.81392803,96021.0,96020.0,0.00085085]
[1763272830083,1.79449217,96021.0,96020.0,0.00085085]
[1763272832568,1.89816155,96021.0,96020.0,0.00085085]
[1763272832781,1.91758731,96021.0,96020.0,0.00085085]
[1763272834040,1.85065831,96021.0,96020.0,0.00085085]
[1763272834355,1.67667893,96021.0,96020.0,0.00085085]
[1763272835065,1.70799402,96021.0,96020.0,0.00085085]
[1763272836788,1.91628179,96021.0,96020.0,0.00085085]
[1763272836994,0.36641874,96018.0,96010.0,0.0004]
[1763272837196,2.39383874,96011.0,96010.0,0.00045629]
[1763272837406,2.4132645,96011.0,96010.0,0.00045629]
[1763272837630,2.44860393,96011.0,96010.0,0.00045629]
[1763272837817,2.34523893,96011.0,96010.0,0.00045629]
[1763272838861,2.34623893,96011.0,96010.0,0.00045629]
[1763272839077,2.34723893,96011.0,96010.0,0.00045629]
[1763272840576,2.20680693,96011.0,96010.0,0.00045629]
[1763272843176,2.22806032,96011.0,96010.0,0.00045629]
[1763272843400,2.20680693,96011.0,96010.0,0.00045629]
[1763272844719,2.23812424,96011.0,96010.0,0.00045629]
[1763272846753,2.25447202,96011.0,96010.0,0.00045629]
[1763272847932,0.36641874,96010.0,95990.0,0.0004]
[1763272848152,0.36641874,96010.0,96000.0,1.00110123]
[1763272848153,2.39383874,96001.0,96000.0,1.00110123]
[1763272848399,2.44860393,96001.0,96000.0,1.00110123]
[1763272849149,2.4799252,96001.0,96000.0,1.00110123]
[1763272850135,1.05211577,96001.0,96000.0,1.00110123]
[1763272851308,1.05311577,96001.0,96000.0,1.00110123]
[1763272851859,1.06946466,96001.0,96000.0,1.00110123]
[1763272852486,1.05311577,96001.0,96000.0,1.00110123]
[1763272855248,1.0217945,96001.0,96000.0,1.00110123]
[1763272855577,1.03151338,96001.0,96000.0,1.00110123]
[1763272856946,1.04786238,96001.0,96000.0,1.00110123]
[1763272857317,1.03151338,96001.0,96000.0,1.00110123]
[1763272861543,1.06685281,96001.0,96000.0,1.00110123]
[1763272863862,1.14681308,96001.0,96000.0,1.00110123]
[1763272865168,1.11147365,96001.0,96000.0,1.00110123]
[1763272865993,1.12782286,96001.0,96000.0,1.00110123]
[1763272866198,1.11147365,96001.0,96000.0,1.00110123]
[1763272868436,1.14681308,96001.0,96000.0,1.00110123]
[1763272870346,0.05756464,96001.0,96000.0,1.00110123]
[1763272870517,0.04784576,96001.0,96000.0,1.00110123]
[1763272870732,0.06419327,96001.0,96000.0,1.00110123]
[1763272871128,0.04784576,96001.0,96000.0,1.00110123]
[1763272871503,0.04684576,96001.0,96000.0,1.00110123]
[1763272871919,1.3401225,96001.0,96000.0,1.00110123]
[1763272873417,1.37546193,96001.0,96000.0,1.00110123]
[1763272873630,1.34985538,96001.0,96000.0,1.00110123]
[1763272873844,1.42651067,96001.0,96000.0,1.00110123]
[1763272874132,1.44285978,96001.0,96000.0,0.71859]
[1763272874373,1.42651067,96001.0,96000.0,0.71859]
[1763272874736,1.53018005,96001.0,96000.0,0.43607877]
[1763272874947,1.53018005,96001.0,95980.0,0.0004]
[1763272874949,0.36641874,95988.0,95980.0,0.0004]
[1763272875171,2.35044,95981.0,95980.0,0.00044507]
[1763272875306,2.37959864,95981.0,95980.0,0.00044507]
[1763272875714,2.38377582,95981.0,95980.0,0.00044507]
[1763272876104,2.45143064,95981.0,95980.0,0.00044507]
[1763272876318,0.36641874,95978.0,95962.0,9e-05]
[1763272876523,1.447602,95971.0,95970.0,0.00044507]
[1763272876745,1.46702776,95971.0,95970.0,0.00044507]
[1763272876927,1.44447976,95971.0,95970.0,0.00044507]
[1763272877132,1.44865737,95971.0,95970.0,0.00044507]
[1763272878352,1.44965737,95971.0,95970.0,0.00044507]
[1763272879778,1.46601052,95971.0,95970.0,0.00044507]
[1763272880144,1.5696799,95971.0,95970.0,0.00044507]
[1763272881594,1.46601052,95971.0,95970.0,0.00044507]
[1763272882010,1.44965737,95971.0,95970.0,0.00044507]
[1763272885217,1.4496319,95971.0,95970.0,0.00044507]
[1763272886238,1.3014659,95971.0,95970.0,0.00044507]
[1763272887652,1.1440509,95971.0,95970.0,0.00044507]
[1763272887852,1.0918779,95971.0,95970.0,0.00044507]
[1763272888683,1.07247761,95971.0,95970.0,0.00044507]
[1763272888887,0.66947661,95971.0,95970.0,0.00044507]
[1763272889290,0.654543,95971.0,95970.0,0.00044507]
[1763272889489,0.67996674,95971.0,95970.0,0.00044507]
[1763272890502,0.66395774,95971.0,95970.0,0.00044507]
[1763272891371,0.64359074,95971.0,95970.0,0.00044507]
[1763272891573,0.63315174,95971.0,95970.0,0.00044507]
[1763272892308,0.39485874,95971.0,95970.0,0.00044507]
[1763272892512,0.51253174,95971.0,95970.0,0.00044507]
[1763272892812,0.51670909,95971.0,95970.0,0.00044507]
[1763272893513,0.39903609,95971.0,95970.0,0.00044507]
[1763272893718,0.51415309,95971.0,95970.0,0.00044507]
[1763272895163,0.53050593,95971.0,95970.0,0.00044507]
[1763272896119,0.62358063,95971.0,95970.0,0.00044507]
[1763272896518,0.64295905,95971.0,95970.0,0.00044507]
[1763272897275,0.67295968,95971.0,95970.0,0.00044507]
[1763272897474,0.88135596,95971.0,95970.0,0.00044507]
[1763272897684,0.86500312,95971.0,95970.0,0.00044507]
[1763272898465,0.80727124,95971.0,95970.0,0.00044507]
[1763272899368,0.59887496,95971.0,95970.0,0.00044507]
[1763272899573,0.80727124,95971.0,95970.0,0.00044507]
[1763272900310,0.8169619,95971.0,95970.0,0.00044507]
[1763272902556,2.57483239,95963.0,95962.0,9e-05]
[1763272902770,2.65756363,95963.0,95962.0,0.00013508]
[1763272903205,2.67144493,95963.0,95962.0,0.00013508]
[1763272903766,2.46303128,95963.0,95962.0,0.00013508]
[1763272906358,2.13373228,95963.0,95962.0,0.00013508]
[1763272907170,2.09712528,95963.0,95962.0,0.00013508]
[1763272909032,0.72047628,95963.0,95962.0,0.00013508]
[1763272909232,0.71077311,95963.0,95962.0,0.00013508]
[1763272909390,0.58247311,95963.0,95962.0,0.00013508]
[1763272910992,0.59882876,95963.0,95962.0,0.00013508]
[1763272911235,0.56348594,95963.0,95962.0,0.00013508]
[1763272915570,0.65764235,95963.0,95962.0,0.00013508]
[1763272915918,0.59882876,95963.0,95962.0,0.00013508]
[1763272917162,0.60854178,95963.0,95962.0,0.00013508]
[1763272918572,0.62489781,95963.0,95962.0,0.00013508]
[1763272918994,0.60854178,95963.0,95962.0,0.00013508]
[1763272920482,0.56512304,95963.0,95962.0,0.00013508]
[1763272920687,0.48732307,95963.0,95962.0,0.00013508]
[1763272921099,0.51557907,95963.0,95962.0,0.00013508]
[1763272921443,0.49655342,95963.0,95962.0,0.00013508]
[1763272921798,0.50244031,95963.0,95962.0,0.00013508]
[1763272925443,0.5024977,95963.0,95962.0,0.00013508]
[1763272927240,0.3868007,95963.0,95962.0,0.00013508]
[1763272928227,0.01635489,95963.0,95962.0,0.00013508]
[1763272929769,0.323,95979.0,95962.0,0.00013508]
[1763272929970,0.323,95979.0,95971.0,0.02549]
[1763272930173,0.323,95979.0,95971.0,0.00995]
[1763272930380,0.02079446,95978.0,95962.0,0.00113508]
[1763272930577,0.22704078,95972.0,95962.0,0.00113508]
[1763272931037,0.25029078,95972.0,95962.0,0.00113508]
[1763272931437,0.25029078,95972.0,95962.0,0.00013508]
[1763272931646,0.01635216,95970.0,95962.0,0.00013508]
[1763272932693,0.01635216,95970.0,95963.0,0.02346]
[1763272933134,0.23894078,95990.0,95963.0,0.02346]
[1763272933135,0.01635116,95972.0,95963.0,0.02346]
[1763272933687,0.01635116,95972.0,95962.0,0.03145553]
[1763272933861,0.01635116,95972.0,95971.0,0.01005]
[1763272937342,0.01635116,95972.0,95971.0,0.01105]
[1763272937501,0.34379446,95989.0,95971.0,0.01105]
[1763272937704,0.34379446,95989.0,95981.0,0.10410215]
[1763272937929,0.01635037,95983.0,95980.0,0.01005]
[1763272939780,0.01635037,95983.0,95981.0,0.12732215]
[1763272940185,0.01635037,95983.0,95982.0,0.02322]
[1763272941949,0.01635037,95983.0,95982.0,0.02422]
[1763272942793,0.01635037,95983.0,95982.0,0.02522]
[1763272943308,0.323,95999.0,95991.0,0.00995]
[1763272943926,1.023968,96008.0,96000.0,0.01654]
[1763272944127,0.323,96007.0,96000.0,0.01654]
[1763272944289,0.323,96007.0,96001.0,0.01005]
[1763272944488,0.04347564,96016.0,96009.0,0.01654]
[1763272944489,0.03131564,96016.0,96009.0,0.01654]
[1763272944694,0.01019384,96020.0,96010.0,0.02659]
[1763272944695,0.21569078,96020.0,96010.0,0.02659]
[1763272944913,0.34379446,96019.0,96010.0,0.02659]
[1763272945127,0.02079446,96019.0,96010.0,0.02659]
[1763272945329,0.34379446,96019.0,96010.0,0.02659]
[1763272945485,0.02079446,96019.0,96010.0,0.02659]
[1763272945911,0.34379446,96019.0,96010.0,0.02659]
[1763272946350,0.01634655,96017.0,96010.0,0.02659]
[1763272947283,0.01634655,96017.0,96010.0,0.04981]
[1763272947463,0.01634655,96017.0,96010.0,0.03327]
[1763272947679,0.01634655,96017.0,96011.0,0.02322]
[1763272948446,0.01634655,96017.0,96012.0,0.03130395]
[1763272948865,0.01634655,96017.0,96013.0,0.02322]
[1763272950598,0.01634655,96017.0,96014.0,0.03130395]
[1763272950968,0.01634655,96017.0,96015.0,0.02322]
[1763272951593,0.01634655,96017.0,96016.0,0.03130395]
[1763272952679,0.01634655,96017.0,96010.0,0.01005]
[1763272953075,0.01634655,96017.0,96011.0,0.02479]
[1763272953876,0.01634655,96017.0,96012.0,0.02083072]
[1763272954276,0.01634655,96017.0,96013.0,0.02479]
[1763272954478,0.01634655,96017.0,96013.0,0.04562051]
[1763272954877,0.01634655,96017.0,96014.0,0.04562029]
[1763272955293,0.01634655,96017.0,96015.0,0.02479]
[1763272955542,0.01634655,96017.0,96016.0,0.02082986]
[1763272956068,0.01634655,96017.0,96010.0,0.01005]
[1763272956485,0.01093,96031.0,96019.0,0.02629]
[1763272956687,0.01093,96031.0,96030.0,0.12044215]
[1763272956688,0.00013499,96031.0,96030.0,0.12044215]
[1763272957868,0.00013499,96031.0,96030.0,0.01634]
[1763272958821,0.01647918,96031.0,96030.0,0.01634]
[1763272959362,0.03579,96031.0,96030.0,0.01634]
[1763272959883,0.0521339,96031.0,96030.0,0.01634]
[1763272960689,0.0521339,96031.0,96030.0,0.04113]
[1763272961068,0.0521339,96031.0,96030.0,0.01634]
[1763272964841,0.0521339,96031.0,96027.0,0.01005]
[1763272965040,0.01931082,96030.0,96029.0,0.10410215]
[1763272969346,0.01931082,96030.0,96019.0,0.00995]
[1763272969552,0.03282308,96031.0,96012.0,0.01005]
[1763272969553,0.22597565,96029.0,96012.0,0.01005]
[1763272969774,0.18346483,96022.0,96018.0,0.10410215]
[1763272969988,0.01931082,96021.0,96018.0,0.10410215]
[1763272970201,0.01931082,96020.0,96018.0,0.10410215]
[1763272970448,0.01931082,96019.0,96012.0,0.01005]
[1763272970702,0.01931082,96018.0,96012.0,0.01005]
[1763272970853,0.33489,96021.0,96012.0,0.01005]
[1763272970854,0.01931082,96017.0,96012.0,0.01005]
[1763272971055,0.01931082,96016.0,96012.0,0.01005]
[1763272971268,0.01931082,96015.0,96012.0,0.01005]
[1763272971481,0.01931082,96014.0,96012.0,0.01005]
[1763272971681,0.01931082,96013.0,96012.0,0.01005]
[1763272973148,0.03565669,96013.0,96012.0,0.01005]
[1763272974025,0.03565669,96013.0,96012.0,0.01105]
[1763272974223,0.03565669,96013.0,96012.0,0.01205]
[1763272977093,0.03565669,96013.0,96012.0,0.002]
[1763272985409,0.01634587,96013.0,96012.0,0.002]
[1763272985618,0.05178528,96013.0,96012.0,0.002]
[1763272986410,0.03236587,96013.0,96012.0,0.002]
[1763272986632,0.03236587,96013.0,96012.0,0.001]
[1763272986995,0.03236587,96013.0,96001.0,0.01005]
[1763272987116,0.32301064,96011.0,96001.0,0.01005]
[1763272987503,0.48451596,96011.0,96001.0,0.01005]
[1763272987637,0.01166,96010.0,96001.0,0.01005]
[1763272988641,0.01166,96010.0,96002.0,0.02083289]
[1763272990074,0.01166,96010.0,96001.0,0.01005]
[1763272990717,0.01634587,96013.0,96001.0,0.01005]
[1763272990937,0.32301064,96011.0,96002.0,0.02083289]
[1763272991128,0.32301064,96011.0,96003.0,0.10410215]
[1763272991331,0.33935651,96013.0,96003.0,0.10410215]
[1763272991876,0.36298651,96013.0,96003.0,0.10410215]
[1763272992329,0.02363,96012.0,96001.0,0.01005]
[1763272992532,0.48451596,96011.0,96002.0,0.10410215]
[1763272992710,0.49617596,96011.0,96002.0,0.10410215]
[1763272992963,0.01166,96011.0,96002.0,0.10410215]
[1763272993168,0.33466,96011.0,96002.0,0.10410215]
[1763272993678,0.33466,96011.0,96010.0,0.02579]
[1763272993679,0.323,96011.0,96010.0,0.02579]
[1763272994742,0.323,96011.0,96010.0,0.02679]
[1763272995107,0.01634587,96013.0,96010.0,0.02679]
[1763272995310,0.01634587,96013.0,96011.0,0.04517094]
[1763272995537,0.01634587,96013.0,96012.0,0.02434]
[1763272996881,0.01634587,96013.0,96012.0,0.02534]
[1763272997114,0.01634587,96013.0,96012.0,0.02634]
[1763273005416,0.01634587,96013.0,96012.0,0.002]
[1763273007827,0.01634587,96013.0,96012.0,0.02634]
[1763273013027,0.01634587,96013.0,96012.0,0.04717072]
[1763273013219,0.01634587,96013.0,96012.0,0.09513819]
[1763273013417,0.01634587,96013.0,96012.0,0.07079819]
[1763273013641,0.01634486,96026.0,96012.0,0.07079819]
[1763273013642,0.01634486,96026.0,96015.0,0.01]
[1763273013862,0.01634486,96026.0,96025.0,0.12072215]
[1763273015496,0.01634486,96026.0,96025.0,0.14522215]
[1763273016109,0.01634486,96026.0,96025.0,0.12072215]
[1763273018180,0.01634486,96026.0,96025.0,0.10410215]
[1763273021991,0.01634486,96026.0,96023.0,0.02082834]
[1763273022206,0.01634486,96026.0,96025.0,0.0413229]
[1763273022845,0.323,96034.0,96025.0,0.0413229]
[1763273023061,0.323,96034.0,96026.0,0.0245]
[1763273025186,0.323,96034.0,96025.0,0.01002]
[1763273025655,0.323,96034.0,96025.0,0.03452]
[1763273026097,0.323,96034.0,96025.0,0.0658229]
[1763273026727,0.33474,96034.0,96025.0,0.0413229]
[1763273026944,0.01174,96034.0,96025.0,0.01002]
[1763273027170,0.01634431,96030.0,96025.0,0.01002]
[1763273032821,0.01634431,96030.0,96026.0,0.0245]
[1763273035131,0.01634431,96030.0,96027.0,0.02082747]
[1763273035509,0.01634431,96030.0,96028.0,0.0245]
[1763273035742,0.01634431,96030.0,96028.0,0.04532725]
[1763273035948,0.01634431,96030.0,96029.0,0.04532704]
[1763273036304,0.01634431,96030.0,96029.0,0.02082704]
[1763273036500,0.01634431,96030.0,96026.0,0.02082769]
[1763273036708,0.01634431,96030.0,96026.0,0.04896113]
[1763273036910,0.01634431,96030.0,96027.0,0.0245]
[1763273037125,0.01634431,96030.0,96028.0,0.02082725]
[1763273037349,0.01634431,96030.0,96029.0,0.02082704]
[1763273038102,0.323,96039.0,96029.0,0.02082704]
[1763273038324,0.323,96039.0,96030.0,0.04532682]
[1763273038496,0.10763886,96040.0,96030.0,0.04532682]
[1763273038665,0.10763886,96040.0,96030.0,0.02082682]
[1763273039112,0.10763886,96040.0,96030.0,0.05212786]
[1763273040540,0.10763886,96040.0,96030.0,0.05312786]
[1763273041148,0.21527772,96040.0,96030.0,0.05312786]
[1763273041333,0.21527772,96040.0,96030.0,0.05412786]
[1763273041913,0.21527772,96040.0,96030.0,0.03330104]
[1763273042269,0.21527772,96040.0,96030.0,0.002]
[1763273042270,0.01609499,96031.0,96030.0,0.002]
[1763273042641,0.00013499,96031.0,96030.0,0.002]
[1763273043017,0.00013499,96031.0,96030.0,0.001]
[1763273043462,0.01609499,96031.0,96030.0,0.001]
[1763273043665,0.05143781,96031.0,96030.0,0.001]
[1763273044094,0.05143781,96031.0,96019.0,0.02814811]
[1763273044218,0.05143781,96031.0,96016.0,0.01]
[1763273044219,0.323,96028.0,96018.0,0.02814811]
[1763273044622,0.01235,96027.0,96018.0,0.02814811]
[1763273046098,0.43063886,96028.0,96019.0,0.11843164]
[1763273046885,0.323,96028.0,96027.0,0.01002]
[1763273047103,0.323,96029.0,96027.0,0.01002]
[1763273047760,0.323,96029.0,96022.0,0.01002]
[1763273048318,0.32313499,96031.0,96022.0,0.01002]
[1763273049140,0.32313499,96031.0,96024.0,0.10410215]
[1763273049807,0.00013499,96031.0,96024.0,0.10410215]
[1763273050015,0.00013499,96031.0,96022.0,0.01002]
[1763273050224,0.00013499,96031.0,96023.0,0.10410215]
[1763273050553,0.02092945,96031.0,96023.0,0.10410215]
[1763273050919,0.00013499,96031.0,96023.0,0.10410215]
[1763273051767,0.01634498,96030.0,96023.0,0.10410215]
[1763273053263,0.03713944,96030.0,96023.0,0.10410215]
[1763273053486,0.03713946,96029.0,96023.0,0.10410215]
[1763273054240,0.03713946,96029.0,96019.0,0.02814811]
[1763273054241,0.02735,96024.0,96019.0,0.02814811]
[1763273054452,0.02735,96024.0,96004.0,0.02356]
[1763273054453,0.02735,96020.0,96017.0,0.02814811]
[1763273054677,0.02735,96020.0,96016.0,0.02814811]
[1763273055308,0.02735,96020.0,96011.0,0.01002]
[1763273055309,0.01513,96017.0,96011.0,0.01002]
[1763273055635,0.01513,96017.0,96009.0,0.02814811]
[1763273056535,0.0226,96019.0,96008.0,0.02814811]
[1763273056733,0.323,96017.0,96008.0,0.02814811]
[1763273057315,0.323,96017.0,96009.0,0.02356]
[1763273057516,0.323,96017.0,96008.0,0.02814811]
[1763273058327,0.323,96017.0,96007.0,0.02814811]
[1763273058724,0.323,96017.0,96007.0,0.05170811]
[1763273060848,0.43063886,96017.0,96007.0,0.05170811]
[1763273062338,0.43063886,96017.0,96007.0,0.02356]
[1763273064246,0.0226,96037.0,96016.0,0.02601]
[1763273064413,0.21527772,96030.0,96026.0,0.02603]
[1763273064564,0.323,96029.0,96026.0,0.02603]
[1763273064767,0.323,96029.0,96026.0,0.04959]
[1763273064979,0.5,96039.0,96026.0,0.04959]
[1763273065187,0.10763886,96040.0,96027.0,0.02356]
[1763273065405,0.323,96039.0,96027.0,0.02356]
[1763273065612,0.10763886,96040.0,96027.0,0.02356]
[1763273065803,0.323,96039.0,96027.0,0.02356]
[1763273066702,0.323,96039.0,96027.0,0.05170811]
[1763273067237,0.323,96039.0,96028.0,0.02356]
[1763273067942,0.323,96049.0,96028.0,0.02356]
[1763273068147,0.323,96039.0,96028.0,0.02356]
[1763273068905,0.323,96039.0,96028.0,0.02456]
[1763273069103,0.10763886,96040.0,96028.0,0.02456]
[1763273069306,0.10763886,96040.0,96030.0,0.02814811]
[1763273069660,0.10763886,96040.0,96028.0,0.02556]
[1763273070052,0.10763886,96040.0,96028.0,0.05586123]
[1763273070260,0.10763886,96040.0,96030.0,0.02810497]
[1763273070453,0.10763886,96040.0,96030.0,0.02910497]
[1763273070858,0.323,96051.0,96030.0,0.02810497]
[1763273071026,0.10763886,96040.0,96030.0,0.02810497]
[1763273071860,0.00557943,96031.0,96030.0,0.001]
[1763273072275,0.00557943,96031.0,96030.0,0.03010027]
[1763273073508,0.00557943,96031.0,96030.0,0.05092709]
[1763273077323,0.00557943,96031.0,96030.0,0.02282682]
[1763273077945,0.00013499,96031.0,96030.0,0.05092709]
[1763273078145,0.00013499,96031.0,96030.0,0.02282682]
[1763273078469,0.00013499,96031.0,96030.0,0.05090802]
[1763273079031,0.00013499,96031.0,96030.0,0.02282682]
[1763273081671,0.00013499,96031.0,96030.0,0.06031861]
[1763273081874,0.00013499,96031.0,96030.0,0.02282682]
[1763273090404,0.00013499,96031.0,96030.0,0.06031861]
[1763273091191,0.00013499,96031.0,96030.0,0.03949179]
[1763273091352,0.016476,96031.0,96030.0,0.002]
[1763273091554,0.016476,96031.0,96030.0,0.03009489]
[1763273092272,0.016476,96031.0,96030.0,0.002]
[1763273093661,0.016476,96031.0,96030.0,0.02282682]
[1763273094086,0.016476,96031.0,96030.0,0.06031861]
[1763273094336,0.016476,96031.0,96030.0,0.02282682]
[1763273098168,0.016476,96031.0,96030.0,0.002]
[1763273101547,0.00013499,96031.0,96030.0,0.002]
[1763273103333,0.00013499,96031.0,96030.0,0.0254]
[1763273104405,0.01647571,96031.0,96030.0,0.0254]
[1763273104806,0.01647571,96031.0,96030.0,0.02616726]
[1763273106507,0.01647571,96031.0,96030.0,0.00276726]
[1763273109584,0.01647571,96031.0,96030.0,0.04030971]
[1763273110035,0.01647571,96031.0,96030.0,0.00276726]
[1763273111332,0.01647571,96031.0,96030.0,0.00176726]
[1763273111521,0.01647571,96031.0,96030.0,0.00076726]
[1763273111700,0.01647571,96031.0,96030.0,0.06013653]
[1763273111947,0.01647571,96031.0,96030.0,0.02259408]
[1763273114230,0.01647571,96031.0,96030.0,0.00176726]
[1763273116115,0.00013499,96031.0,96030.0,0.00176726]
[1763273118768,0.00013499,96031.0,96030.0,0.07889567]
[1763273119583,0.00013499,96031.0,96030.0,0.02259408]
[1763273120992,0.00013499,96031.0,96030.0,0.02159408]
[1763273121172,0.00013499,96031.0,96030.0,0.02259408]
[1763273121370,0.00013499,96031.0,96030.0,0.02359408]
[1763273122483,0.00013499,96031.0,96030.0,0.0548898]
[1763273123368,0.00013499,96031.0,96030.0,0.12962618]
[1763273124035,0.00013499,96031.0,96030.0,0.0548898]
[1763273124277,0.00013499,96031.0,96030.0,0.12992487]
[1763273125372,0.00013499,96031.0,96030.0,0.0548898]
[1763273126304,0.00013499,96031.0,96030.0,0.10906322]
[1763273127330,0.00013499,96031.0,96030.0,0.03406298]
[1763273129344,0.00013499,96031.0,96030.0,0.14396298]
[1763273129547,0.00013499,96031.0,96030.0,0.03406298]
[1763273148230,0.00013499,96031.0,96030.0,0.10906322]
[1763273149085,0.00013499,96031.0,96030.0,0.0548898]
[1763273149298,0.01021175,96039.0,96030.0,0.0548898]
[1763273149501,0.01066254,96039.0,96038.0,0.02531]
[1763273149724,0.01066254,96039.0,96038.0,0.04668514]
[1763273149725,0.00045079,96039.0,96038.0,0.04668514]
[1763273149922,0.00045079,96039.0,96038.0,0.06267896]
[1763273151051,0.00045079,96039.0,96038.0,0.04285387]
[1763273151442,0.00045079,96039.0,96038.0,0.04385387]
[1763273152785,0.00045079,96039.0,96038.0,0.06467896]
[1763273152926,0.0163381,96062.0,96039.0,0.20824849]
[1763273153258,0.01647326,96062.0,96061.0,0.12941215]
[1763273153610,0.01647326,96062.0,96061.0,0.15165875]
[1763273154224,0.01647326,96062.0,96061.0,0.11411215]
[1763273154623,0.01647326,96062.0,96061.0,0.14540215]
[1763273156647,0.01647326,96062.0,96061.0,0.18294875]
[1763273157283,0.01647326,96062.0,96061.0,0.14540215]
[1763273157669,0.01647326,96062.0,96061.0,0.18294875]
[1763273158081,0.01647326,96062.0,96061.0,0.14540215]
[1763273158474,0.00013516,96062.0,96061.0,0.14540215]
[1763273159114,0.00013516,96062.0,96061.0,0.14640215]
[1763273159312,0.00013516,96062.0,96061.0,0.35460318]
[1763273159640,0.00013516,96062.0,96061.0,0.42969639]
[1763273160423,0.00013516,96062.0,96061.0,0.22149536]
[1763273160801,0.00013516,96062.0,96061.0,0.22249536]
[1763273161222,0.00013516,96062.0,96061.0,0.14740215]
[1763273161747,0.00013516,96062.0,96061.0,0.22249536]
[1763273161944,0.00013516,96062.0,96061.0,0.14740215]
[1763273164754,0.00013516,96062.0,96061.0,0.29340215]
[1763273176462,0.00013516,96062.0,96061.0,0.50160318]
[1763273178389,0.00013516,96062.0,96061.0,0.54502192]
[1763273178791,0.00013516,96062.0,96061.0,0.62011513]
[1763273179134,0.00013516,96062.0,96061.0,0.94311513]
[1763273179291,0.00013516,96062.0,96061.0,0.86802192]
[1763273179480,0.00013516,96062.0,96061.0,0.97792192]
[1763273181385,2.103e-05,96062.0,96061.0,0.97792192]
[1763273182357,2.103e-05,96062.0,96061.0,0.97692192]
[1763273182598,0.01633195,96093.0,96078.0,0.323]
[1763273182826,0.01633195,96093.0,96092.0,0.1680081]
[1763273182827,0.01646708,96093.0,96092.0,0.1680081]
[1763273183029,0.01646708,96093.0,96092.0,0.13058215]
[1763273183226,0.01646708,96093.0,96092.0,0.14539067]
[1763273183644,0.01646708,96093.0,96092.0,0.20362951]
[1763273184052,0.01646708,96093.0,96092.0,0.16620405]
[1763273184257,0.01646708,96093.0,96092.0,0.14539067]
[1763273185510,0.01646708,96093.0,96092.0,0.18281613]
[1763273186407,0.01646708,96093.0,96092.0,0.182835]
[1763273186829,0.01646708,96093.0,96092.0,0.14539067]
[1763273187400,0.01646708,96093.0,96092.0,0.16620405]
[1763273188515,0.01646708,96093.0,96092.0,0.22234298]
[1763273188767,0.01646708,96093.0,96092.0,0.16620405]
[1763273189009,0.01646708,96093.0,96092.0,0.2015783]
[1763273189620,0.01646708,96093.0,96092.0,0.14539067]
[1763273190489,0.01646708,96093.0,96092.0,0.2015783]
[1763273190897,0.01646708,96093.0,96092.0,0.14539067]
[1763273192311,0.00013513,96093.0,96092.0,0.14539067]
[1763273196553,0.00013513,96093.0,96092.0,0.15920652]
[1763273196952,0.00013513,96093.0,96092.0,0.20156158]
[1763273197194,0.00013513,96093.0,96092.0,0.20156152]
[1763273197560,0.00013513,96093.0,96092.0,0.14539067]
[1763273197838,0.00013513,96093.0,96092.0,0.16620405]
[1763273199374,0.00013513,96093.0,96092.0,0.35562279]
[1763273199498,0.00013513,96093.0,96092.0,0.44470941]
[1763273199709,0.00013513,96093.0,96092.0,0.33480941]
[1763273200563,0.00013513,96093.0,96092.0,0.61779519]
[1763273202082,0.00013513,96093.0,96092.0,0.40966132]
[1763273202729,0.00013513,96093.0,96092.0,0.54294328]
[1763273203469,0.00013513,96093.0,96092.0,0.86594328]
[1763273204077,0.00013513,96093.0,96092.0,0.97584328]
[1763273205789,2.104e-05,96093.0,96092.0,1.0694049]
[1763273206650,2.104e-05,96093.0,96092.0,1.0704049]
[1763273206866,2.104e-05,96110.0,96108.0,0.20809892]
[1763273207046,0.0002,96120.0,96111.0,0.20809195]
[1763273207269,0.0002,96120.0,96119.0,0.02583]
[1763273207483,0.0002,96120.0,96119.0,0.03081754]
[1763273208163,0.0002,96120.0,96119.0,0.03498634]
[1763273209029,0.0002,96120.0,96119.0,0.24306174]
[1763273209247,0.0002,96120.0,96119.0,0.2222542]
[1763273209466,0.0002,96120.0,96119.0,0.03498634]
[1763273209680,0.0002,96120.0,96119.0,0.24306174]
[1763273209995,0.0002,96120.0,96119.0,0.03498634]
[1763273210429,0.0002,96120.0,96119.0,0.0141788]
[1763273211283,0.0002,96120.0,96119.0,0.07024434]
[1763273212121,0.0002,96120.0,96119.0,0.0141788]
[1763273212542,0.0002,96120.0,96119.0,0.07023785]
[1763273214333,0.0002,96120.0,96119.0,0.0141788]
[1763273217210,0.0002,96120.0,96119.0,0.07021474]
[1763273217383,0.0002,96120.0,96119.0,0.21621474]
[1763273217565,0.0002,96120.0,96119.0,0.1601788]
[1763273219517,0.0002,96120.0,96119.0,0.21621474]
[1763273220501,0.0002,96120.0,96119.0,0.1601788]
[1763273221339,0.0002,96120.0,96119.0,0.21621474]
[1763273221931,0.0002,96120.0,96119.0,0.1601788]
[1763273222704,0.0002,96120.0,96119.0,0.21621474]
[1763273224286,0.0002,96120.0,96119.0,0.1601788]
[1763273229047,0.0002,96120.0,96119.0,0.0141788]
[1763273229449,0.0002,96120.0,96119.0,0.05161954]
[1763273230140,0.01652496,96120.0,96119.0,0.05161954]
[1763273230347,0.01652496,96120.0,96119.0,0.0141788]
[1763273231961,0.0002,96120.0,96119.0,0.0141788]
[1763273232168,0.0002,96120.0,96119.0,0.0367888]
[1763273234167,0.0002,96120.0,96119.0,0.0141788]
[1763273234938,0.01652462,96120.0,96119.0,0.0141788]
[1763273236746,0.01652462,96120.0,96119.0,0.0388888]
[1763273238403,0.01652462,96120.0,96119.0,0.0141788]
[1763273239237,0.01652462,96120.0,96119.0,0.0388888]